Cogmind - Beta 9.5 *** ADVENTURER MODE // 2020.04.13 @ 16:26:00 Player: Plarzay Result: Destroyed by L-41 Fighter with Axe Performance ------------- Evolutions (5) 2500 Regions Visited (12) 2400 Robots Destroyed (208) 1040 Value Destroyed (8363) 8363 Prototype IDs (12) 240 Alien Tech Used (0) 0 Bonus (2302) 2302 TOTAL SCORE: 16845 Bonus ------- High Alert Combat Kills 1556 Follower Combat Kills 826 Aligned with FarCom 300 A7 Reached Mainframe 300 Friendly Fire -680 Cogmind --------- Core Integrity 0/1000 Matter 452/500 Energy 17/100 System Corruption 8% Temperature Cool (9) Movement Rolling (160) Ox6 Location -5/Factory Parts ------- > --- POWER (2) -------- (None) > --- PROPULSION (4) --- Compact Wheel > --- UTILITY (7) ------ Advanced Heat Sink High-capacity Storage Unit High-capacity Storage Unit High-capacity Storage Unit High-capacity Matter Pod Advanced Targeting Computer Point Defense System > --- WEAPON (4) ------- Heavy Flail Heavy Flail Heavy Flail > --- INVENTORY (28) --- Improved Heat Sink Advanced Heat Sink Particle Charger Heavy Flail Peak State ------------ > --- POWER ------------ Micro Fission Core Quantum Reactor > --- PROPULSION ------- Improved Carbon-fiber Leg Improved Carbon-fiber Leg Improved Carbon-fiber Leg Flexi-carbon Leg > --- UTILITY ---------- Coolant Injector High-capacity Storage Unit High-capacity Storage Unit Humpback Layered Medium Armor Plating Centrium Medium Armor Plating > --- WEAPON ----------- Cooled Plasma Rifle Long-range Proton Cannon Smartbomb Launcher > --- INVENTORY -------- Deuterium Engine Light Nuclear Core Improved Deuterium Engine Light Angular Momentum Engine Fission Core Carbon-fiber Leg Carbon-fiber Leg Improved Carbon-fiber Leg Advanced Heat Sink Advanced Heat Sink Advanced Heat Sink High-capacity Storage Unit High-capacity Matter Pod Advanced Signal Interpreter Advanced Targeting Computer Particle Charger Weapon Cycler Core Shielding Improved Weapon Shielding Hardened Light Armor Plating Hardened Light Armor Plating Improved Light Armor Plating Improved Medium Armor Plating Improved Medium Armor Plating Point Defense System Heavy Laser AWS/Thermal Proton Cannon Proton Cannon Heavy Ion Cannon High-powered Shotgun Heavy Machine Gun Heavy Machine Gun Assault Cannon Magnetic Acceleration Cannon Heavy Flak Cannon Heavy Flak Cannon Antimatter Cannon Heavy Rocket Launcher [Rating: 95] Favorites ----------- Power Ion Engine Engine Ion Engine Power Core Micro Fission Core Reactor Quantum Reactor Propulsion Armored Huge Wheel Leg Carbon-fiber Leg Wheel Armored Huge Wheel Utility High-capacity Storage Unit Device Triangulator Storage High-capacity Storage Unit Processor Advanced Targeting Computer Protection Improved Medium Armor Plating Weapon Assault Rifle Energy Gun AWS/Thermal Energy Cannon Proton Cannon Ballistic Gun Assault Rifle Ballistic Cannon Magnetic Acceleration Cannon Launcher Smartbomb Launcher Special Weapon Mining Laser Impact Weapon Heavy Flail Build | -11 -10 -9 -9 -9 -8 -8 -7 -6 -6 -6 -6 -5 ------- Run | Scr Mat Mat Min Exi Min Mat Fac Fac Ext Cet Arc Fac Slots Evolved 10 | . . 2 . . . 2 2 2 . . . 2 Power 1 | . . . . . . . . . . . . 1 Propulsion 2 | . . . . . . 2 . . . . . . Utility 5 | . . 2 . . . . 2 1 . . . . Weapon 2 | . . . . . . . . 1 . . . 1 Parts Attached 173 | 5 8 3 1 4 6 5 14 20 13 7 4 83 Power 18 | 1 1 . . . 1 1 1 1 4 1 . 7 Engine 9 | 1 1 . . . 1 1 1 1 . . . 3 Core 8 | . . . . . . . . . 4 . . 4 Reactor 1 | . . . . . . . . . . 1 . . Propulsion 46 | 2 4 . . . 5 4 . 2 . . 4 25 Treads . | . . . . . . . . . . . . . Leg 29 | . 2 . . . 2 . . . . . 4 21 Wheel 17 | 2 2 . . . 3 4 . 2 . . . 4 Hover . | . . . . . . . . . . . . . Flight . | . . . . . . . . . . . . . Utility 40 | 1 2 3 1 1 . . 1 9 2 2 . 18 Device 14 | . . . 1 . . . . 5 1 . . 7 Storage 9 | 1 1 2 . 1 . . . 1 . 1 . 2 Processor 1 | . . . . . . . . . . . . 1 Hackware . | . . . . . . . . . . . . . Protection 16 | . 1 1 . . . . 1 3 1 1 . 8 Artifact . | . . . . . . . . . . . . . Weapon 69 | 1 1 . . 3 . . 12 8 7 4 . 33 Energy Gun 22 | . . . . 3 . . 5 3 3 2 . 6 Energy Cannon 9 | . . . . . . . 2 1 1 . . 5 Ballistic Gun 12 | 1 1 . . . . . 1 1 1 . . 7 Ballistic Cannon 16 | . . . . . . . 2 3 1 1 . 9 Launcher 6 | . . . . . . . 1 . 1 1 . 3 Special Weapon 1 | . . . . . . . 1 . . . . . Impact Weapon 3 | . . . . . . . . . . . . 3 Slashing Weapon . | . . . . . . . . . . . . . Piercing Weapon . | . . . . . . . . . . . . . Special Melee Weapon . | . . . . . . . . . . . . . Unidentified Prototypes 9 | . . . . 2 . . 3 . . 2 . 2 Parts Lost 77 | . . . . . . . . 6 7 2 2 60 Power 10 | . . . . . . . . . 2 . . 8 Propulsion 17 | . . . . . . . . 1 . . 2 14 Utility 19 | . . . . . . . . 2 1 1 . 15 Weapon 31 | . . . . . . . . 3 4 1 . 23 Highest Loss Streak 26 | . . . . . . . . 3 4 2 2 26 Average Slot Usage (%) 82 | . 96 98 100 89 77 63 66 79 79 79 85 88 Engine 5 | . 12 11 11 11 11 9 7 6 . . . . Core 2 | . . . . . . . . . 5 2 . 5 Leg 6 | . 17 . . . . . . . . . 13 20 Wheel 12 | . 10 22 22 22 22 18 15 12 13 13 5 . Device 6 | . . . 2 4 . . . 12 13 13 13 8 Storage 22 | . 14 33 33 33 33 27 23 20 20 19 20 18 Protection 5 | . 12 9 8 . . . 7 6 6 6 6 6 Energy Gun 6 | . . . . 9 11 9 4 5 7 10 13 4 Energy Cannon 1 | . . . . . . . 2 . 1 . . 3 Ballistic Gun 5 | . 28 22 22 8 . . . 3 4 2 . 2 Ballistic Cannon 4 | . . . . . . . 3 9 5 5 6 6 Naked Turns . | . . . . . . . . . . . . . Heaviest Build 211 | 11 44 108 108 157 159 161 181 183 188 192 192 211 Greatest Support 74 | 26 26 26 26 26 26 56 56 56 56 56 60 74 Greatest Overweight (x) 8 | 1 1 4 4 6 6 5 3 3 3 3 6 8 Average Overweight (x) 3 | . . 4 4 4 6 2 3 3 3 3 3 2 Largest Inventory Capacity 40 | 6 12 28 28 40 40 40 40 40 40 40 40 40 Average Capacity 35 | 5 6 27 28 34 40 40 40 39 40 39 40 35 Most Carried 40 | 5 9 15 15 24 36 40 40 40 40 40 40 40 Average Carried 30 | 3 5 10 15 19 31 39 39 35 39 35 38 30 Final Capacity 40 | 6 12 28 28 40 40 40 40 40 40 40 40 28 Final Carried 40 | 5 9 15 15 23 36 40 40 40 40 40 38 4 Class Distribution -------------------- 49% | Hauler-Mutant 35% | Hauler-Skirmisher 5% | Mutant 3% | Hauler-Tank Dominant Class ---------------- Mutant | -10/Materials Hauler-Mutant | -9/Materials Hauler-Mutant | -9/Mines Hauler-Mutant | -9/Exiles Hauler-Mutant | -8/Mines Hauler-Mutant | -8/Materials Hauler-Mutant | -7/Factory Hauler-Skirmisher | -6/Factory Hauler-Skirmisher | -6/Extension Hauler-Skirmisher | -6/Cetus Hauler-Skirmisher | -6/Archives Hauler-Mutant | -5/Factory Resources | -11 -10 -9 -9 -9 -8 -8 -7 -6 -6 -6 -6 -5 ----------- Run | Scr Mat Mat Min Exi Min Mat Fac Fac Ext Cet Arc Fac Matter Collected 5152 | 241 195 145 20 95 175 50 343 586 822 146 114 2220 Remotely . | . . . . . . . . . . . . . Salvage Created 8080 | . 352 145 58 . 399 241 622 1063 1023 351 314 3512 Parts 328 | . 14 5 5 . 24 14 29 31 38 13 11 144 Haulers Intercepted 3 | . . 1 . . . . 1 . . . . 1 Recyclers Shooed 8 | . . . . . . . . 1 1 . . 6 Parts Field Recycled . | . . . . . . . . . . . . . Retrieved Matter . | . . . . . . . . . . . . . Parts Self-Destructed . | . . . . . . . . . . . . . Prevented . | . . . . . . . . . . . . . Kills | -11 -10 -9 -9 -9 -8 -8 -7 -6 -6 -6 -6 -5 ------- Run | Scr Mat Mat Min Exi Min Mat Fac Fac Ext Cet Arc Fac Combat Hostiles Destroyed 168 | . 8 3 3 . 13 4 13 19 17 9 4 75 Guns 65 | . 8 3 3 . 13 4 4 9 5 2 1 13 Cannons 62 | . . . . . . . 6 9 10 2 2 33 AOE 36 | . . . . . . . 2 1 . 5 . 28 Classes Destroyed 14 | . 4 1 . . 2 2 3 . 1 . . 1 Worker 8 | . . . . . 1 . . . . . . 7 Builder 11 | . . . . . . . . . . . . 11 Hauler 3 | . . 1 . . . . 1 . . . . 1 Recycler 9 | . 1 . . . . . . 1 1 . . 6 Operator 2 | . . . . . . 1 . . 1 . . . Watcher 7 | . 1 . . . . . 2 . 2 . . 2 Swarmer 45 | . 3 . 3 . 7 . 3 1 . 4 . 24 Grunt 71 | . 5 3 . . 4 2 5 11 5 4 . 32 Brawler 4 | . . . . . . . 1 1 1 . . 1 Duelist 5 | . . . . . 2 . . 2 . . . 1 Sentry 17 | . . . . . . 2 1 2 8 . 4 . Hunter 13 | . . . . . . . 1 1 2 . . 9 Programmer 11 | . . . . . . . 2 1 . . . 8 Behemoth 1 | . . . . . . . . . 1 . . . Cetus Guard 1 | . . . . . . . . . . 1 . . Best Kill Streak 15 | . 7 2 3 . 5 2 4 9 4 7 3 15 Combat Bots Only 10 | . 4 2 3 . 4 2 4 9 3 7 3 10 Max Kills in Single Turn 5 | . 2 1 1 . 1 1 2 1 2 5 1 5 Gunslinging 1 | . 1 . . . . . . . . . . . Exploded 5 | . . . . . . . 2 1 . 5 . 4 Melee . | . . . . . . . . . . . . . Uniques/NPCs Destroyed . | . . . . . . . . . . . . . Combat | -11 -10 -9 -9 -9 -8 -8 -7 -6 -6 -6 -6 -5 -------- Run | Scr Mat Mat Min Exi Min Mat Fac Fac Ext Cet Arc Fac Damage Taken 14016 | . 265 60 . . 237 106 670 1537 1719 259 242 8921 Core 1438 | . 61 8 . . 20 . 23 114 140 52 . 1020 Absorbed by Shields 278 | . . . . . . . . . 211 67 . . Core Remaining (%) 88 | 100 75 . . . 93 100 96 . . . 64 . Volleys Fired 395 | . 27 20 4 . . . 46 56 51 11 14 166 Largest 4 | . 2 2 2 . . . 2 3 3 3 3 4 Hottest 293 | . 40 40 40 . . . 119 186 191 213 213 293 Shots Fired 1089 | . 54 40 8 . 46 17 95 161 149 29 36 454 Gun 574 | . 54 40 8 . 46 17 35 88 80 19 22 165 Cannon 490 | . . . . . . . 54 73 67 9 14 273 Launcher 21 | . . . . . . . 2 . 2 1 . 16 Special 4 | . . . . . . . 4 . . . . . Kinetic 624 | . 54 40 8 . . . 42 98 94 12 14 262 Thermal 301 | . . . . . 46 17 40 25 39 16 22 96 Explosive 21 | . . . . . . . 2 . 2 1 . 16 Electromagnetic 143 | . . . . . . . 11 38 14 . . 80 Robot Hit Streak 35 | . 13 13 15 . 22 21 13 35 19 17 10 25 Robot Miss Streak 7 | . 3 2 1 . 1 1 4 2 7 2 2 4 Penetration Max 1 | . . . . . . . . . . . . 1 Secondary Targets 5 | . 3 1 1 . . . . . . . . . Max Gunslinging Chain 1 | . 1 1 1 . . . . . . . . . Autonomous 77 | . . . . . 46 17 14 . . . . . Shots Hit Robots 842 | . 43 32 7 . 43 16 66 138 112 22 28 335 Core Hits 485 | . 16 9 3 . 17 6 27 67 92 16 12 220 Critical Hits 13 | . 1 . . . . . . 2 2 . . 8 Critical Kills 7 | . . . . . . . . 1 1 . . 5 Critical Parts Destroyed 6 | . 1 . . . . . . 1 1 . . 3 Melee Attacks 7 | . . . . . . . . . . . . 7 Impact 7 | . . . . . . . . . . . . 7 Slashing . | . . . . . . . . . . . . . Piercing . | . . . . . . . . . . . . . Sneak Attacks . | . . . . . . . . . . . . . Combat Hostiles . | . . . . . . . . . . . . . Follow-up Attacks 1 | . . . . . . . . . . . . 1 Damage Inflicted 26226 | . 546 390 87 . 1289 434 1521 3186 3375 1007 828 13563 Guns 9826 | . 546 390 87 . 1289 434 612 1513 1464 414 513 2564 Cannons 10279 | . . . . . . . 775 1339 1637 216 315 5997 Explosions 5829 | . . . . . . . 126 309 273 377 . 4744 Melee 195 | . . . . . . . . . . . . 195 Ramming 97 | . . . . . . . 8 25 1 . . 63 Kinetic 10748 | . 546 390 87 . . . 532 1548 2025 286 315 5019 Thermal 7096 | . . . . . 1289 434 713 706 766 344 513 2331 Explosive 5104 | . . . . . . . 126 171 273 377 . 4157 Electromagnetic 2986 | . . . . . . . 142 736 310 . . 1798 Impact 195 | . . . . . . . . . . . . 195 Slashing . | . . . . . . . . . . . . . Piercing . | . . . . . . . . . . . . . Highest Corruption 8 | . . . . 2 2 . 1 1 1 1 1 8 Average Corruption 2 | . . . . 2 2 . 1 1 1 1 1 5 Corruption Purged . | . . . . . . . . . . . . . Effects 59 | . . . . 8 4 . 1 1 10 1 . 34 Message Errors 21 | . . . . 4 2 . . 1 3 1 . 10 Matter Fused 4 | . . . . . . . . . . . . 4 Heat Flow Errors 6 | . . . . . . . . . . . . 6 Energy Discharges 6 | . . . . 2 1 . . . 3 . . . Data Loss (minor) 10 | . . . . 2 1 . 1 . 1 . . 5 Data Loss (major) 2 | . . . . . . . . . . . . 2 Targeting Errors 10 | . . . . . . . . . 3 . . 7 Overload Shots . | . . . . . . . . . . . . . Overflow Damage 665 | . . . . . . . 4 57 14 . . 590 Projectiles 211 | . . . . . . . 4 28 . . . 179 Explosions 441 | . . . . . . . . 29 14 . . 398 Melee 13 | . . . . . . . . . . . . 13 Knockbacks 91 | . . . . . . . 4 20 18 4 . 45 Impact . | . . . . . . . . . . . . . Kinetic 82 | . . . . . . . 4 18 16 4 . 40 Secondary 9 | . . . . . . . . 2 2 . . 5 Self-Inflicted Damage 500 | . . . . . . . 46 103 39 5 . 307 Shots 14 | . . . . . . . 2 3 1 1 . 7 Rammed 3 | . . . . . . . 1 1 1 . . . Targets Rammed 5 | . . . . . . . 1 1 1 . . 2 Kicked 2 | . . . . . . . . . . . . 2 Crushed . | . . . . . . . . . . . . . Highest Temperature 673 | . 34 . . . . . 390 320 197 165 137 673 Average Temperature 110 | . 14 . . . . . 100 71 53 60 69 153 Received Heat Transfer 4266 | . 153 30 . . 108 63 201 654 390 63 45 2559 Effects 33 | . . . . . . . 1 2 . . . 30 Shutdowns 13 | . . . . . . . 1 1 . . . 11 Energy Bleed 5 | . . . . . . . . 1 . . . 4 Interference 7 | . . . . . . . . . . . . 7 Short Circuit 4 | . . . . . . . . . . . . 4 Damage (minor) 3 | . . . . . . . . . . . . 3 Damage (core) 1 | . . . . . . . . . . . . 1 Siege Activations . | . . . . . . . . . . . . . Robots Corrupted 2 | . . . . . . . 1 . . . . 1 Combat Hostiles 2 | . . . . . . . 1 . . . . 1 Parts Fried 8 | . . . . . . . . 1 2 1 . 4 Impact Corruptions 2 | . . . . . . . . . . . . 2 Robots Melted 3 | . . . . . . . . . 2 . 1 . Combat Hostiles 3 | . . . . . . . . . 2 . 1 . Parts Melted 16 | . . . . . 5 3 . 2 1 . 2 3 Heat Transferred 10328 | . . . . . 1628 555 962 1182 1466 518 740 3277 Parts Sabotaged . | . . . . . . . . . . . . . Parts Stolen . | . . . . . . . . . . . . . Parts Stripped . | . . . . . . . . . . . . . Power Chain Reactions 2 | . . . . . . . . 2 . . . . Missiles Intercepted . | . . . . . . . . . . . . . Alert | -11 -10 -9 -9 -9 -8 -8 -7 -6 -6 -6 -6 -5 ------- Run | Scr Mat Mat Min Exi Min Mat Fac Fac Ext Cet Arc Fac Peak Influence 1325 | . 243 209 138 . 337 147 194 454 401 394 170 1325 Average Influence 314 | . 147 151 94 . 201 75 76 265 250 213 155 680 Maximum Alert Level 4 | . 1 1 . . 1 . . 2 2 1 . 4 Low Security (%) 47 | 100 52 68 100 . 56 100 100 26 26 68 100 16 Level 1 30 | . 47 31 . . 43 . . 60 67 31 . 15 Level 2 8 | . . . . . . . . 13 6 . . 20 Level 3 7 | . . . . . . . . . . . . 29 Level 4 5 | . . . . . . . . . . . . 19 Level 5 . | . . . . . . . . . . . . . High Security . | . . . . . . . . . . . . . Max Security . | . . . . . . . . . . . . . Squads Dispatched 39 | . 1 1 . . . . 2 8 3 1 . 23 Investigation 8 | . 1 . . . . . . 3 . 1 . 3 Extermination 8 | . . . . . . . 2 2 . . . 4 Reinforcement 11 | . . 1 . . . . . 1 3 . . 6 Assault 5 | . . . . . . . . 1 . . . 4 Garrison 7 | . . . . . . . . 1 . . . 6 Intercept . | . . . . . . . . . . . . . Construction Impeded 7 | . . . . . . . . 1 1 . . 5 Haulers Reinforced . | . . . . . . . . . . . . . Stealth | -11 -10 -9 -9 -9 -8 -8 -7 -6 -6 -6 -6 -5 --------- Run | Scr Mat Mat Min Exi Min Mat Fac Fac Ext Cet Arc Fac Distress Signals 7 | . 2 1 . . . . . . 1 1 . 2 Communications Jammed . | . . . . . . . . . . . . . Distress Signals . | . . . . . . . . . . . . . Times Spotted 260 | . 12 12 7 . 13 5 16 28 35 18 9 105 Peak Tracking Total 9 | . 5 4 4 . 4 2 3 5 5 8 2 9 Tactical Retreats 16 | . 1 . . . . . 2 2 4 . . 7 Traps | -11 -10 -9 -9 -9 -8 -8 -7 -6 -6 -6 -6 -5 ------- Run | Scr Mat Mat Min Exi Min Mat Fac Fac Ext Cet Arc Fac Traps Triggered 3 | . . 1 . . . . 1 1 . . . . Indirectly . | . . . . . . . . . . . . . Trap Hack Attempts . | . . . . . . . . . . . . . Triggered . | . . . . . . . . . . . . . Disarmed 7 | . 1 . . . . . . 6 . . . . Reprogrammed 6 | . . . . . . . . 6 . . . . Reused 2 | . . . . . . . . 2 . . . . Traps Extracted . | . . . . . . . . . . . . . Installed . | . . . . . . . . . . . . . Triggered 2 | . . . . . . . . 2 . . . . Machines | -11 -10 -9 -9 -9 -8 -8 -7 -6 -6 -6 -6 -5 ---------- Run | Scr Mat Mat Min Exi Min Mat Fac Fac Ext Cet Arc Fac Machines Disabled 29 | . . . . . . . 1 5 4 1 . 18 Max in Single Turn 5 | . . . . . . . 1 4 . . . 5 Garrison Access 1 | . . . . . . . . 1 . . . . Machines Sabotaged . | . . . . . . . . . . . . . Garrisons Compromised . | . . . . . . . . . . . . . Overloaded Fab Kills . | . . . . . . . . . . . . . Fab Network Shutdowns . | . . . . . . . . . . . . . Hacking | -11 -10 -9 -9 -9 -8 -8 -7 -6 -6 -6 -6 -5 --------- Run | Scr Mat Mat Min Exi Min Mat Fac Fac Ext Cet Arc Fac Machines Accessed 42 | . 6 3 . 2 . 5 4 9 6 3 . 4 Terminals 30 | . 5 2 . . . 3 1 6 6 3 . 4 Fabricators 2 | . . . . . . . 2 . . . . . Repair Stations 4 | . 1 1 . . . 1 . 1 . . . . Recycling Units 1 | . . . . . . . . 1 . . . . Scanalyzers 2 | . . . . . . 1 . 1 . . . . Garrison Access 1 | . . . . . . . 1 . . . . . Total Hacks 143 | . 19 11 . 30 . 19 6 28 12 9 . 9 Successful 96 | . 10 7 . 30 . 16 1 18 7 3 . 4 Failed 47 | . 9 4 . . . 3 5 10 5 6 . 5 Catastrophic 12 | . 1 . . . . 1 2 3 1 1 . 3 Database Lockouts . | . . . . . . . . . . . . . Manual 63 | . 12 6 . 1 . 9 1 13 6 4 2 9 Terminals 90 | . 17 8 . . . 11 1 23 12 9 . 9 Fabricators 3 | . . . . . . . 3 . . . . . Repair Stations 9 | . 2 3 . . . 2 . 2 . . . . Recycling Units 2 | . . . . . . . . 2 . . . . Scanalyzers 7 | . . . . . . 6 . 1 . . . . Garrison Access 2 | . . . . . . . 2 . . . . . Terminal Hacks 57 | . 3 2 . 30 . 4 . 8 5 3 . 2 Record 33 | . . . . 30 . . . . . 2 . 1 Prototype ID Bank 1 | . . . . . . . . . 1 . . . Open Door 5 | . . . . . . . . 1 3 1 . . Level Access Points 3 | . 1 1 . . . 1 . . . . . . Branch Access Points 4 | . 1 . . . . 1 . 1 1 . . . Emergency Access Points 3 | . . . . . . . . 2 . . . 1 Repair Station Index 1 | . . 1 . . . . . . . . . . Alert Level 1 | . . . . . . . . 1 . . . . Unreport Threat 1 | . . . . . . . . 1 . . . . Disarm Traps 2 | . 1 . . . . . . 1 . . . . Reprogram Traps 1 | . . . . . . . . 1 . . . . Transport Status 1 | . . . . . . 1 . . . . . . Zone Layout 1 | . . . . . . 1 . . . . . . Fabricator Hacks 1 | . . . . . . . 1 . . . . . Build 1 | . . . . . . . 1 . . . . . Repair Station Hacks 8 | . 2 2 . . . 2 . 2 . . . . Scan Component 4 | . 1 1 . . . 1 . 1 . . . . Repair 4 | . 1 1 . . . 1 . 1 . . . . Recycling Unit Hacks 2 | . . . . . . . . 2 . . . . Report Inventory 1 | . . . . . . . . 1 . . . . Retrieve Components 1 | . . . . . . . . 1 . . . . Scanalyzer 7 | . . . . . . 6 . 1 . . . . Insert Component 4 | . . . . . . 3 . 1 . . . . Analyze 3 | . . . . . . 3 . . . . . . Garrison Access Hacks . | . . . . . . . . . . . . . Unauthorized Hacks 51 | . 13 7 . . . 8 . 13 6 . . 4 Terminals 21 | . 5 3 . . . 4 . 5 2 . . 2 Track 5 | . 1 . . . . 1 . 2 1 . . . Assimilate 1 | . . 1 . . . . . . . . . . Botnet 15 | . 4 2 . . . 3 . 3 1 . . 2 Fabricators . | . . . . . . . . . . . . . Repair Stations . | . . . . . . . . . . . . . Recycling Units . | . . . . . . . . . . . . . Scanalyzers . | . . . . . . . . . . . . . Garrison Access . | . . . . . . . . . . . . . Data Cores Recovered 2 | . . . . . . 1 1 . . . . . Used 1 | . . . . . . 1 . . . . . . Hacking Detections 31 | . 4 3 . . . 3 3 9 4 1 . 4 Full Trace Events 12 | . 3 1 . . . 1 . 3 . 1 . 3 Feedback Events 2 | . . . . . . . . 1 . . . 1 Corruption 2 | . . . . . . . . 1 . . . 1 Feedback Blocked . | . . . . . . . . . . . . . Robot Schematics Acquired . | . . . . . . . . . . . . . Robots Built . | . . . . . . . . . . . . . Matter . | . . . . . . . . . . . . . Time . | . . . . . . . . . . . . . Total Robot Build Rating . | . . . . . . . . . . . . . Part Schematics Acquired 3 | . . . . . . 3 . . . . . . Parts Built 2 | . . . . . . . 2 . . . . . Matter 234 | . . . . . . . 234 . . . . . Time 58 | . . . . . . . 58 . . . . . Total Part Build Rating 14 | . . . . . . . 14 . . . . . Parts Repaired 4 | . 1 1 . . . 1 . 1 . . . . Time 122 | . 26 26 . . . 26 . 44 . . . . Parts Recycled . | . . . . . . . . . . . . . Recycled Matter . | . . . . . . . . . . . . . Retrieved Matter . | . . . . . . . . . . . . . Retrieved Components 2 | . . . . . . . . 2 . . . . Parts Scanalyzed 3 | . . . . . . 3 . . . . . . Part Schematics Acquired 3 | . . . . . . 3 . . . . . . Parts Damaged . | . . . . . . . . . . . . . Bothacking | -11 -10 -9 -9 -9 -8 -8 -7 -6 -6 -6 -6 -5 ------------ Run | Scr Mat Mat Min Exi Min Mat Fac Fac Ext Cet Arc Fac Used RIF Installer . | . . . . . . . . . . . . . Robots Hacked . | . . . . . . . . . . . . . Non-combat . | . . . . . . . . . . . . . Combat . | . . . . . . . . . . . . . Robot Hacks Applied . | . . . . . . . . . . . . . Relay Couplers Released 1 | . . . . . . . . 1 . . . . Machine Destruction 1 | . . . . . . . . 1 . . . . Robots Rewired 21 | . . . . . . . . . 21 . . . Allies Hacked . | . . . . . . . . . . . . . Hacks Repelled . | . . . . . . . . . . . . . Allies | -11 -10 -9 -9 -9 -8 -8 -7 -6 -6 -6 -6 -5 -------- Run | Scr Mat Mat Min Exi Min Mat Fac Fac Ext Cet Arc Fac Total Allies 26 | . . . . . . . 2 . 24 . . . Largest Group 13 | . . . . . . . 2 2 13 12 2 . Highest-Rated Group 448 | . . . . . . . 62 62 448 428 46 . Highest-Rated Ally 156 | . . . . . . . 31 31 156 142 26 . Total Orders . | . . . . . . . . . . . . . Ally Attacks 223 | . . . . . . . . 11 129 79 4 . Total Damage 5457 | . . . . . . . . 208 3600 1585 64 . Kills 21 | . . . . . . . . 1 12 8 . . Allies Corrupted . | . . . . . . . . . . . . . Allies Melted . | . . . . . . . . . . . . . Intel | -11 -10 -9 -9 -9 -8 -8 -7 -6 -6 -6 -6 -5 ------- Run | Scr Mat Mat Min Exi Min Mat Fac Fac Ext Cet Arc Fac Robot Analysis Total . | . . . . . . . . . . . . . Derelict Logs Recovered . | . . . . . . . . . . . . . Drone Launches . | . . . . . . . . . . . . . Drone Recoveries . | . . . . . . . . . . . . . Exploration | -11 -10 -9 -9 -9 -8 -8 -7 -6 -6 -6 -6 -5 ------------- Run | Scr Mat Mat Min Exi Min Mat Fac Fac Ext Cet Arc Fac Turns Passed 8213 | 43 388 327 95 910 548 439 1017 1082 976 254 144 1990 Spaces Moved 4162 | 34 243 177 52 647 348 314 480 574 453 127 54 659 Core 10 | 10 . . . . . . . . . . . . Treads . | . . . . . . . . . . . . . Legs 779 | . 131 . . . . . . . . . 31 617 Wheels 3373 | 24 112 177 52 647 348 314 480 574 453 127 23 42 Hover . | . . . . . . . . . . . . . Flight . | . . . . . . . . . . . . . Fastest Speed 50 | 50 90 130 130 130 150 115 130 130 130 130 130 120 Average Speed 141 | 78 106 130 130 138 150 119 130 130 130 130 179 194 Slowest Speed 360 | 90 120 130 130 150 150 150 130 130 130 130 210 360 Overloaded Moves . | . . . . . . . . . . . . . Propulsion Burnouts . | . . . . . . . . . . . . . Robots Hopped . | . . . . . . . . . . . . . Cave-ins Triggered . | . . . . . . . . . . . . . Exploration Rate (%) 42 | 3 54 22 23 93 73 27 13 13 73 71 63 19 Regions Visited 12 Branch Regions 6 Pre-discovered Areas 1 | . . . . 1 . . . . . . . . Known Exits Taken 5 | . 1 . . . 1 1 . 1 1 . . . Unknown Exits Taken 7 | 1 . 1 1 1 . . 1 . . 1 1 . Scrap Searched 2 | . . . . . 2 . . . . . . . Spaces Dug . | . . . . . . . . . . . . . Terrain Destroyed 380 | . . . . . 2 2 11 64 27 22 3 249 Melee . | . . . . . . . . . . . . . Projectile 67 | . . . . . 2 2 1 12 6 1 3 40 AOE 313 | . . . . . . . 10 52 21 21 . 209 Actions | -11 -10 -9 -9 -9 -8 -8 -7 -6 -6 -6 -6 -5 --------- Run | Scr Mat Mat Min Exi Min Mat Fac Fac Ext Cet Arc Fac Total 5684 | 51 316 234 71 663 371 385 783 779 729 191 73 1038 Wait 564 | 1 28 26 15 . 5 34 224 96 58 22 . 55 Move 4150 | 33 242 176 51 646 347 313 479 573 452 126 53 659 Hop . | . . . . . . . . . . . . . Pick Up 192 | 11 8 9 . 7 13 16 10 32 12 24 2 48 Fast Attach 3 | . 1 . . . . . . . 1 . . 1 Attach 109 | 5 2 3 . 3 . 4 5 10 7 2 4 64 Detach 8 | . . . . 3 . 3 . . . . . 2 Swap 61 | . 5 . 1 1 6 1 9 10 5 5 . 18 Drop 55 | 1 3 . . 3 . 14 9 1 6 1 . 17 Fire 395 | . 27 20 4 . . . 46 56 51 11 14 166 Melee 6 | . . . . . . . . . . . . 6 Ram 3 | . . . . . . . 1 1 1 . . . Kick 2 | . . . . . . . . . . . . 2 Crush . | . . . . . . . . . . . . . Escape Stasis . | . . . . . . . . . . . . . Rewire 136 | . . . . . . . . . 136 . . . Trap . | . . . . . . . . . . . . . Miscellaneous . | . . . . . . . . . . . . . Route ------- -11/Scrapyard -10/Materials (discovered 4 exits: *Mat x3 / Min) -9/Materials (discovered 4 exits: Mat x3 / [*Min]) -9/Mines (discovered 2 exits: *Mat / *Exi) -9/Exiles (discovered 2 exits: [*Min x2]) -8/Mines -8/Materials (discovered 3 exits: *Fac x3) -7/Factory -6/Factory (discovered 4 exits: Low x2 / *Ext x2) -6/Extension (discovered 2 exits: *Fac / *Cet) -6/Cetus -6/Archives -5/Factory History --------- Turn | Location | Event 23 | -11/Scrapyard | Discovered new exit (range 16) 44 | -11/Scrapyard | Entered Materials 325 | -10/Materials | Build established: Mutant 340 | -10/Materials | Repaired Ion Engine 363 | -10/Materials | Identified exit to Mines 398 | -10/Materials | Discovered new exit (range 8) 402 | -10/Materials | Identified exit to Materials 432 | -10/Materials | Entered another Materials area 432 | -9/Materials | Evolved 2 slots: Utility x2 455 | -9/Materials | Identified exit to Materials 563 | -9/Materials | Repaired Lgt. Armor Plating 615 | -9/Materials | Met 8R-AWN 735 | -9/Materials | Discovered new exit (range 8) 737 | -9/Materials | Build established: Hauler-Mutant 759 | -9/Materials | Entered Mines 761 | -9/Mines | Followed 8R-AWN into the Mines 766 | -9/Mines | Met a Derelict bent on vengeance 796 | -9/Mines | Discovered exit to Materials (range 5) 849 | -9/Mines | Discovered new exit (range 5) 854 | -9/Mines | Entered Exiles 890 | -9/Exiles | Welcomed by 8R-AWN 908 | -9/Exiles | Met EX-HEX 995 | -9/Exiles | Met EX-DEC 1021 | -9/Exiles | Visited The Gauntlet 1191 | -9/Exiles | Learned location of Zion (-7) 1282 | -9/Exiles | Discovered new exit (range 14) 1366 | -9/Exiles | Met EX-BIN 1386 | -9/Exiles | Aligned with FarCom system 1387 | -9/Exiles | Given EX-Vault access code 1439 | -9/Exiles | Opened EX-Vault 1446 | -9/Exiles | Found Prototype Energy Gun 1448 | -9/Exiles | Identified AWS/Thermal 1493 | -9/Exiles | Warned to stay clear of 0b10 Research branches 1557 | -9/Exiles | Learned about 8R-AWN's background 1590 | -9/Exiles | Discovered new exit (range 14) 1764 | -9/Exiles | Left Exiles lab with AWS/Thermal 1764 | -9/Exiles | Entered Mines 2291 | -8/Mines | Discovered exit to Materials (range 15) 2312 | -8/Mines | Entered Materials 2312 | -8/Materials | Evolved 2 slots: Propulsion x2 2447 | -8/Materials | Repaired Grenade Launcher 2690 | -8/Materials | Identified exit to Factory 2751 | -8/Materials | Entered Factory 2751 | -7/Factory | Evolved 2 slots: Utility x2 3249 | -7/Factory | Fabricated Quantum Capacitor (x2) 3713 | -7/Factory | Allied Derelicts emerged from ambush trap array 3759 | -7/Factory | Discovered new exit (range 8) 3768 | -7/Factory | Entered another Factory area 3768 | -6/Factory | Accompanied by 2 allies 3768 | -6/Factory | Evolved 2 slots: Utility x1, Weapon x1 3828 | -6/Factory | Garrison activated, responded to threat 3915 | -6/Factory | Lost 3 parts (3w) 3927 | -6/Factory | Destroyed 9 combat bots 4065 | -6/Factory | Build established: Hauler-Skirmisher 4401 | -6/Factory | Repaired Arm. Huge Wheel 4718 | -6/Factory | Identified exit to Lower Caves 4718 | -6/Factory | Identified exit to Extension 4850 | -6/Factory | Entered Extension 4913 | -6/Extension | Rewired Cogmind 4928 | -6/Extension | Rewired Cogmind 4936 | -6/Extension | Rewired Cogmind 4959 | -6/Extension | Rewired Cogmind 4967 | -6/Extension | Rewired Cogmind 4975 | -6/Extension | Rewired Cogmind 5130 | -6/Extension | Rescued a captive Derelict 5182 | -6/Extension | Rewired Cogmind 5188 | -6/Extension | Rewired Cogmind 5206 | -6/Extension | Rewired Cogmind 5227 | -6/Extension | Rewired Cogmind 5299 | -6/Extension | Lost 3 parts (1p2w) 5343 | -6/Extension | Rewired Cogmind 5351 | -6/Extension | Rewired Cogmind 5358 | -6/Extension | Rewired Cogmind 5361 | -6/Extension | Rewired Cogmind 5391 | -6/Extension | Rescued A7 5420 | -6/Extension | Spotted B-75 Beast 5425 | -6/Extension | Spotted B-75 Beast 5456 | -6/Extension | Allies destroyed B-75 Beast 5473 | -6/Extension | Destroyed B-75 Beast 5500 | -6/Extension | Lost 4 parts (1p1u2w) 5533 | -6/Extension | Rescued a captive Derelict 5592 | -6/Extension | Rewired Cogmind 5596 | -6/Extension | Rewired Cogmind 5604 | -6/Extension | Rewired Cogmind 5613 | -6/Extension | Rewired Cogmind 5679 | -6/Extension | Identified exit to Cetus 5715 | -6/Extension | Rewired Cogmind 5726 | -6/Extension | Rewired Cogmind 5732 | -6/Extension | Rewired Cogmind 5777 | -6/Extension | Discovered new exit (range 10) 5826 | -6/Extension | Entered Cetus 5826 | -6/Cetus | Accompanied by 12 allies 5831 | -6/Cetus | Acquired a Cetus Manufacturing Module code from A7 5844 | -6/Cetus | Spotted Cetus Guard 5844 | -6/Cetus | Spotted Cetus Guard 5846 | -6/Cetus | Spotted Cetus Guard 5847 | -6/Cetus | Spotted Cetus Guard 5855 | -6/Cetus | Allies destroyed Cetus Guard 5861 | -6/Cetus | Allies destroyed Cetus Guard 5865 | -6/Cetus | Destroyed Cetus Guard 5868 | -6/Cetus | Allies destroyed Cetus Guard 6004 | -6/Cetus | Escorted A7 to Cetus Mainframe 6053 | -6/Cetus | Discovered new exit (range 15) 6068 | -6/Cetus | Destroyed 7 combat bots 6080 | -6/Cetus | Entered Archives 6080 | -6/Archives | Accompanied by 2 allies 6140 | -6/Archives | Unable to access archive contents 6178 | -6/Archives | Discovered new exit (range 16) 6191 | -6/Archives | Unable to access archive contents 6224 | -6/Archives | Entered Factory 6224 | -5/Factory | Evolved 2 slots: Power x1, Weapon x1 6618 | -5/Factory | Garrison activated, responded to threat 7085 | -5/Factory | Build established: Hauler-Mutant 7272 | -5/Factory | Destroyed 10 combat bots 7555 | -5/Factory | Lost 4 parts (1p2u1w) 7644 | -5/Factory | Garrison activated, responded to threat 7762 | -5/Factory | First assault squad dispatched 7764 | -5/Factory | Lost 4 parts (2n1u1w) 7776 | -5/Factory | Garrison activated, responded to threat 7812 | -5/Factory | Destroyed 7 combat bots 7850 | -5/Factory | Core integrity fell below 50% 7935 | -5/Factory | Destroyed 9 combat bots 7935 | -5/Factory | Lost 26 parts (3p6n8u9w) 8087 | -5/Factory | Lost 3 parts (3w) 8185 | -5/Factory | Core integrity fell below 20% 8187 | -5/Factory | Garrison activated, responded to threat 8214 | -5/Factory | Destroyed by L-41 Fighter with Axe Last Messages --------------- 08161_ B-60 Warrior destroyed. 08162_ K-01 Serf cleans the Construction Platform. 08162_ Hvy. Flak Cannon destroyed. 08164_ Acquired 37 matter. 08166_ Flexi-carbon Leg destroyed. 08166_ K-01 Serf collects debris. 08174_ Acquired 119 matter. 08182_ Acquired Hvy. Flail. 08187_ L-41 Fighter calls for garrison reinforcements. 08187_ ALERT: Activating Garrison Access F002. 08191_ Broken AWS/Thermal destroyed. 08198_ Carbon-fiber Leg destroyed. 08200_ 1H:TJ/9NQLDP4%KJ7RON>O 08200_ Critical hit. 08200_ Imp. Deuterium Engine destroyed. 08204_ Acquired Hvy. Flail. 08208_ Arm. Huge Wheel destroyed. 08209_ Destroyed Axe. 08209_ L-41 Fighter system corrupted by crushing effect. 08212_ Hvy. Flail follow-up attack on L-41 Fighter. Map ----- +----------------------------------------------------+ | ?????????????????????????????????????????????????? | | ?????????????????????????????????????????????????? | | ?????????????????????????????????????????????????? | | ?????????????????????????????????????????????????? | | ?????????????????????????????????????????????????? | | ?????????????????????????????????????????????????? | | ?????????????????????????????????????????????????? | | ?????????????????????????????????????????????????? | | ?????????????????????????????????????????????????? | | ?????????????????????????????????????????????????? | | ?????????????????????????????????????????????????? | | ?????????????????????????????????????????????????? | | ????? ???????????????????????????????????????????? | | ???# ???????????????????????????????????????????? | | ?? """"???????????????????????????????????????? | | ??? """""??????????????????????????????????????? | | ??? ??????????????????????????????????????? | | ???? ???????????????????????????????????????? | | ???? ???????????????????????????????????????? | | ????# #??????????????########?????????????????? | | ????# #?############## ! #????Y????????????? | | ????# #?#% % # #?????????????????? | | ????# #?# % # #???????##????????? | | ????# #?# """""""% # ! #??? ????????? | | ????# #?# """"""" # # ???????? | | ????# #?# """"""" #@ l + Y ???????????? | | ????# ### """"""" "# lg #?????????????????? | | ????# / " # g #?????????????????? | | ????# ### """"""" "# #?????????????????? | | ##### #?# """"""" + #?????????????????? | | #?# """"""" # #?????????????????? | | #?# """""""" # #?????????????????? | | """ ### =%" !# #?????????????????? | | """" ####+################?????????????????? | | """" ???????????????????????? | | """" ??????????????????????? | | """" ??????????????????????? | | """" ??????????????????????? | | g ^ ?????????????????????? | | ?????????????????????? | | ! ?????????????????????? | | ###??????????????????????????? | | ### ##+###### #???????????????????? ???????? | | !# #??????????????????? ###????? | | " #?????????????""??? # #????? | | #????????""??"" " #????? | | #????????"" """" " ????? | | #????????"" "" % ##???? | | # #???????""" """ %% # #???? | | # #???????? % [ #???? | +----------------------------------------------------+ Best States ------------- Heat Dissipation 102 Coolant Potential 65 Energy Generation 38 Energy Capacity 420 Matter Stores 500 Matter Capacity 500 Sight Range 16 Terrain Scan Density 10 Armor Coverage 675 Resistance: KI 20 Resistance: TH 20 Resistance: EX 20 Resistance: EM 20 Resistance: I 20 Resistance: S 20 Resistance: P 20 Core Shielding 20 Power Shielding 66 Weapon Shielding 66 Weapon Cycling 15 Evasion (%) 50 Targeting Accuracy 8 Particle Charging 15 Offensive Hacking 10 Item Schematics ----------------- Grenade Launcher | -8/Materials | Scanalyzed Humpback | -8/Materials | Scanalyzed Arm. Huge Wheel | -8/Materials | Scanalyzed Robot Schematics ------------------ None Fabricated ------------ Quantum Capacitor | x2 | -7/Factory | Preloaded Alien Tech Used ----------------- None Achievements -------------- Dynamic Key Librarian More Dakka Please Packrat Quick And Dirty Challenges ------------ None Game ------ Seed LightAntimissileSink Manual? 0 Play Time 02:40:56 Cumulative 25.9 hours Start 2020.04.13 @ 13:38:05 End 2020.04.13 @ 16:26:00 Sessions 1 Manual Loads 0 Difficulty Adventurer Special Mode None Game No. 17 Rogue 10 Adventurer 7 Explorer 0 Win Type - Total 0 Types 0/0/0/0/0/0/0 Lore% 20 Gallery% 33 Achievement% 21 Wizard Run 0 Options --------- ASCII 0 Keyboard 0 Movement Mouse Keybinds 0 Fullscreen 1 Font 18/SmallcapsGlow Map View 76x50 Tactical HUD 1 Map Filters NONE Filters NONE Steam 1 RUN: 1d3fb35a-18a5-40a5-b524-8f39e89d7d50